[Event "Titled Tuesday Blitz December 27 Early 2022"]
[White "Thomforde-Toates, Noah"]
[Black "Baches Garcia, Guillermo"]
[WhiteFideId "30951992"]
[BlackFideId "2209764"]
[WhiteElo "2124"]
[BlackElo "2327"]
[Result "1/2-1/2"]
[Round "03"]
[TimeControl "180+2"]
[Date "2022.12.27"]
[WhiteClock "0:00:40"]
[BlackClock "0:00:16"]

1. d4 {[%clk 0:02:57]}  Nf6 {[%clk 0:02:59]} 2. Nc3 {[%clk 0:02:57]}  e6 {[%clk 0:03:00]} 3. Bf4 {[%clk 0:02:55]}  d5 {[%clk 0:02:56]} 4. e3 {[%clk 0:02:55]}  a6 {[%clk 0:02:55]} 5. Nf3 {[%clk 0:02:42]}  c5 {[%clk 0:02:54]} 6. dxc5 {[%clk 0:02:43]}  Bxc5 {[%clk 0:02:53]} 7. Bd3 {[%clk 0:02:43]}  Nc6 {[%clk 0:02:51]} 8. O-O {[%clk 0:02:41]}  O-O {[%clk 0:02:51]} 9. e4 {[%clk 0:02:36]}  h6 {[%clk 0:02:52]} 10. exd5 {[%clk 0:02:33]}  exd5 {[%clk 0:02:45]} 11. h3 {[%clk 0:02:33]}  Be6 {[%clk 0:02:40]} 12. Qd2 {[%clk 0:02:12]}  Nb4 {[%clk 0:02:33]} 13. Rad1 {[%clk 0:02:10]}  Nxd3 {[%clk 0:02:30]} 14. Qxd3 {[%clk 0:02:11]}  Rc8 {[%clk 0:02:21]} 15. Be3 {[%clk 0:02:07]}  Bd6 {[%clk 0:02:08]} 16. Ne2 {[%clk 0:02:02]}  Qa5 {[%clk 0:01:48]} 17. a3 {[%clk 0:01:50]}  Qa4 {[%clk 0:01:43]} 18. c3 {[%clk 0:01:48]}  Qc4 {[%clk 0:01:36]} 19. Qxc4 {[%clk 0:01:45]}  Rxc4 {[%clk 0:01:35]} 20. Nfd4 {[%clk 0:01:46]}  Ne4 {[%clk 0:01:30]} 21. f3 {[%clk 0:01:39]}  Ng3 {[%clk 0:01:26]} 22. Rfe1 {[%clk 0:01:34]}  Nxe2+ {[%clk 0:01:24]} 23. Rxe2 {[%clk 0:01:33]}  Rfc8 {[%clk 0:01:24]} 24. Bf2 {[%clk 0:01:32]}  Bd7 {[%clk 0:01:20]} 25. g4 {[%clk 0:01:31]}  Bc5 {[%clk 0:01:15]} 26. Kg2 {[%clk 0:01:30]}  Bxd4 {[%clk 0:01:15]} 27. Bxd4 {[%clk 0:01:31]}  R4c6 {[%clk 0:01:10]} 28. Re7 {[%clk 0:01:28]}  Rd8 {[%clk 0:01:03]} 29. Rde1 {[%clk 0:01:26]}  Re6 {[%clk 0:01:01]} 30. R1xe6 {[%clk 0:01:25]}  Bxe6 {[%clk 0:01:01]} 31. Rxb7 {[%clk 0:01:25]}  Ra8 {[%clk 0:00:56]} 32. b4 {[%clk 0:01:25]}  Kf8 {[%clk 0:00:53]} 33. a4 {[%clk 0:01:24]}  g6 {[%clk 0:00:53]} 34. Kg3 {[%clk 0:01:24]}  h5 {[%clk 0:00:52]} 35. Kf4 {[%clk 0:01:24]}  hxg4 {[%clk 0:00:51]} 36. hxg4 {[%clk 0:01:24]}  Ke8 {[%clk 0:00:51]} 37. Bf6 {[%clk 0:01:16]}  Bd7 {[%clk 0:00:51]} 38. Ke5 {[%clk 0:01:14]}  Bxa4 {[%clk 0:00:45]} 39. Kxd5 {[%clk 0:01:10]}  Rc8 {[%clk 0:00:41]} 40. Rb6 {[%clk 0:01:04]}  Bb5 {[%clk 0:00:37]} 41. Kd6 {[%clk 0:01:04]}  Ra8 {[%clk 0:00:29]} 42. g5 {[%clk 0:00:59]}  Rc8 {[%clk 0:00:28]} 43. f4 {[%clk 0:00:59]}  Ra8 {[%clk 0:00:28]} 44. Rb7 {[%clk 0:00:52]}  Rc8 {[%clk 0:00:26]} 45. Ra7 {[%clk 0:00:52]}  Bc4 {[%clk 0:00:24]} 46. Re7+ {[%clk 0:00:49]}  Kf8 {[%clk 0:00:24]} 47. Re1 {[%clk 0:00:49]}  Bb5 {[%clk 0:00:23]} 48. Rh1 {[%clk 0:00:46]}  Rc6+ {[%clk 0:00:22]} 49. Kd5 {[%clk 0:00:46]}  Ke8 {[%clk 0:00:20]} 50. Rh8+ {[%clk 0:00:45]}  Kd7 {[%clk 0:00:21]} 51. Rd8+ {[%clk 0:00:44]}  Kc7 {[%clk 0:00:21]} 52. Rf8 {[%clk 0:00:44]}  Bc4+ {[%clk 0:00:21]} 53. Ke5 {[%clk 0:00:44]}  Be6 {[%clk 0:00:21]} 54. Kd4 {[%clk 0:00:41]}  Rc4+ {[%clk 0:00:21]} 55. Ke3 {[%clk 0:00:40]}  Kb7 {[%clk 0:00:20]} 56. Bd4 {[%clk 0:00:40]}  Rc8 {[%clk 0:00:20]} 57. Rxc8 {[%clk 0:00:38]}  Kxc8 {[%clk 0:00:21]} 58. Ke4 {[%clk 0:00:38]}  Kb7 {[%clk 0:00:21]} 59. Ke5 {[%clk 0:00:39]}  Bb3 {[%clk 0:00:21]} 60. Kd6 {[%clk 0:00:39]}  Be6 {[%clk 0:00:20]} 61. Kc5 {[%clk 0:00:38]}  Bf5 {[%clk 0:00:18]} 62. Bf6 {[%clk 0:00:36]}  Be6 {[%clk 0:00:18]} 63. c4 {[%clk 0:00:36]}  Bf5 {[%clk 0:00:18]} 64. Kd4 {[%clk 0:00:35]}  Be6 {[%clk 0:00:18]} 65. Kc5 {[%clk 0:00:35]}  Bf5 {[%clk 0:00:18]} 66. Be5 {[%clk 0:00:35]}  Be6 {[%clk 0:00:18]} 67. Bd4 {[%clk 0:00:34]}  Bf5 {[%clk 0:00:18]} 68. Kd6 {[%clk 0:00:34]}  Be6 {[%clk 0:00:19]} 69. c5 {[%clk 0:00:35]}  Bc4 {[%clk 0:00:18]} 70. c6+ {[%clk 0:00:32]}  Kc8 {[%clk 0:00:18]} 71. Be5 {[%clk 0:00:32]}  Be6 {[%clk 0:00:18]} 72. Kc5 {[%clk 0:00:32]}  Ba2 {[%clk 0:00:17]} 73. Bd4 {[%clk 0:00:29]}  Bb3 {[%clk 0:00:17]} 74. Be3 {[%clk 0:00:28]}  Ba2 {[%clk 0:00:17]} 75. Bd4 {[%clk 0:00:25]}  Bb3 {[%clk 0:00:17]} 76. Bf6 {[%clk 0:00:24]}  Ba2 {[%clk 0:00:17]} 77. Be5 {[%clk 0:00:23]}  Bb3 {[%clk 0:00:17]} 78. Kd6 {[%clk 0:00:16]}  Ba2 {[%clk 0:00:17]} 79. Bd4 {[%clk 0:00:14]}  Bb3 {[%clk 0:00:17]} 80. Bb6 {[%clk 0:00:14]}  Ba2 {[%clk 0:00:17]} 81. Ba5 {[%clk 0:00:15]}  Bb3 {[%clk 0:00:16]} 82. Kc5 {[%clk 0:00:16]}  Ba2 {[%clk 0:00:17]} 83. Kb6 {[%clk 0:00:16]}  Bc4 {[%clk 0:00:17]} 84. Ka7 {[%clk 0:00:17]}  Be2 {[%clk 0:00:16]} 85. Kb6 {[%clk 0:00:16]}  Bd3 {[%clk 0:00:16]} 86. Kc5 {[%clk 0:00:16]}  Be2 {[%clk 0:00:17]} 87. Kd4 {[%clk 0:00:16]}  Bf1 {[%clk 0:00:17]} 88. Ke5 {[%clk 0:00:16]}  Bc4 {[%clk 0:00:17]} 89. Kd6 {[%clk 0:00:15]}  Bf1 {[%clk 0:00:16]} 90. Bb6 {[%clk 0:00:16]}  Be2 {[%clk 0:00:16]} 91. Bd4 {[%clk 0:00:17]}  Bf1 {[%clk 0:00:16]} 92. f5 {[%clk 0:00:17]}  gxf5 {[%clk 0:00:16]} 93. Ke7 {[%clk 0:00:15]}  Bc4 {[%clk 0:00:15]} 94. Be5 {[%clk 0:00:15]}  Bb3 {[%clk 0:00:15]} 95. Kf6 {[%clk 0:00:15]}  Bc4 {[%clk 0:00:15]} 96. Bf4 {[%clk 0:00:15]}  Bb3 {[%clk 0:00:15]} 97. Ke5 {[%clk 0:00:15]}  Bc4 {[%clk 0:00:15]} 98. Kd4 {[%clk 0:00:15]}  Bf1 {[%clk 0:00:14]} 99. Kd5 {[%clk 0:00:15]}  Be2 {[%clk 0:00:14]} 100. Kd6 {[%clk 0:00:15]}  Bf1 {[%clk 0:00:14]} 101. Kc5 {[%clk 0:00:15]}  Be2 {[%clk 0:00:14]} 102. Kb6 {[%clk 0:00:15]}  Bf1 {[%clk 0:00:14]} 103. Kc5 {[%clk 0:00:16]}  Be2 {[%clk 0:00:14]} 104. Kd5 {[%clk 0:00:17]}  Bf1 {[%clk 0:00:14]} 105. Ke5 {[%clk 0:00:18]}  Be2 {[%clk 0:00:13]} 106. Kxf5 {[%clk 0:00:18]}  Bd3+ {[%clk 0:00:13]} 107. Kf6 {[%clk 0:00:18]}  Bc4 {[%clk 0:00:13]} 108. Ke7 {[%clk 0:00:18]}  Bb3 {[%clk 0:00:11]} 109. Be5 {[%clk 0:00:18]}  Ba2 {[%clk 0:00:11]} 110. Kd6 {[%clk 0:00:18]}  Bb3 {[%clk 0:00:11]} 111. Kc5 {[%clk 0:00:19]}  Ba2 {[%clk 0:00:11]} 112. Kb6 {[%clk 0:00:19]}  Bc4 {[%clk 0:00:12]} 113. Bd4 {[%clk 0:00:19]}  Bf1 {[%clk 0:00:12]} 114. Bc5 {[%clk 0:00:20]}  Be2 {[%clk 0:00:12]} 115. Bd6 {[%clk 0:00:20]}  Bf1 {[%clk 0:00:12]} 116. Bf4 {[%clk 0:00:21]}  Be2 {[%clk 0:00:12]} 117. b5 {[%clk 0:00:22]}  axb5 {[%clk 0:00:12]} 118. Kc5 {[%clk 0:00:22]}  b4 {[%clk 0:00:11]} 119. Kxb4 {[%clk 0:00:22]}  Bf3 {[%clk 0:00:11]} 120. Kc5 {[%clk 0:00:23]}  Be2 {[%clk 0:00:11]} 121. Kd6 {[%clk 0:00:23]}  Bc4 {[%clk 0:00:11]} 122. Bg3 {[%clk 0:00:24]}  Bb3 {[%clk 0:00:11]} 123. Ke7 {[%clk 0:00:24]}  Bc4 {[%clk 0:00:11]} 124. Kf8 {[%clk 0:00:24]}  Bb3 {[%clk 0:00:11]} 125. c7 {[%clk 0:00:25]}  Bc4 {[%clk 0:00:11]} 126. Kg7 {[%clk 0:00:26]}  Bb3 {[%clk 0:00:11]} 127. Kf6 {[%clk 0:00:27]}  Bc4 {[%clk 0:00:10]} 128. Bf4 {[%clk 0:00:27]}  Bb3 {[%clk 0:00:11]} 129. Be5 {[%clk 0:00:27]}  Bc4 {[%clk 0:00:11]} 130. g6 {[%clk 0:00:28]}  fxg6 {[%clk 0:00:11]} 131. Kxg6 {[%clk 0:00:29]}  Ba6 {[%clk 0:00:11]} 132. Kf6 {[%clk 0:00:30]}  Bb7 {[%clk 0:00:11]} 133. Kg5 {[%clk 0:00:31]}  Ba8 {[%clk 0:00:12]} 134. Kf4 {[%clk 0:00:32]}  Bb7 {[%clk 0:00:12]} 135. Kg5 {[%clk 0:00:32]}  Ba8 {[%clk 0:00:13]} 136. Kf6 {[%clk 0:00:33]}  Bb7 {[%clk 0:00:13]} 137. Ke7 {[%clk 0:00:34]}  Ba8 {[%clk 0:00:14]} 138. Kd6 {[%clk 0:00:35]}  Bb7 {[%clk 0:00:14]} 139. Bf4 {[%clk 0:00:36]}  Bg2 {[%clk 0:00:14]} 140. Be5 {[%clk 0:00:37]}  Bf1 {[%clk 0:00:15]} 141. Bf4 {[%clk 0:00:38]}  Bg2 {[%clk 0:00:15]} 142. Be5 {[%clk 0:00:39]}  Bf1 {[%clk 0:00:15]} 143. Bf4 {[%clk 0:00:40]}  Bg2 {[%clk 0:00:16]} 1/2-1/2


[Site "https://www.chess.com"]

[Event "Titled Tuesday Blitz December 27 Early 2022"]
[White "Torres Dominguez, David"]
[Black "Silva, Miguel Antonio Neto"]
[WhiteFideId "2220857"]
[BlackFideId "1911929"]
[WhiteElo "1994"]
[BlackElo "2204"]
[Result "0-1"]
[Round "03"]
[TimeControl "180+2"]
[Date "2022.12.27"]
[WhiteClock "0:00:03"]
[BlackClock "0:00:12"]

1. e4 {[%clk 0:02:57]}  e6 {[%clk 0:02:58]} 2. d4 {[%clk 0:02:57]}  d5 {[%clk 0:02:58]} 3. exd5 {[%clk 0:02:57]}  exd5 {[%clk 0:02:53]} 4. Bd3 {[%clk 0:02:58]}  Bd6 {[%clk 0:02:51]} 5. Qf3 {[%clk 0:02:57]}  Ne7 {[%clk 0:02:45]} 6. Bf4 {[%clk 0:02:55]}  c6 {[%clk 0:02:40]} 7. Ne2 {[%clk 0:02:53]}  Ng6 {[%clk 0:02:32]} 8. Bxg6 {[%clk 0:02:47]}  hxg6 {[%clk 0:02:30]} 9. Bxd6 {[%clk 0:02:44]}  Qxd6 {[%clk 0:02:30]} 10. Nd2 {[%clk 0:02:35]}  Bf5 {[%clk 0:02:27]} 11. O-O-O {[%clk 0:02:28]}  Nd7 {[%clk 0:02:27]} 12. Ng3 {[%clk 0:02:16]}  Be6 {[%clk 0:02:25]} 13. h3 {[%clk 0:02:05]}  O-O-O {[%clk 0:02:18]} 14. Rhe1 {[%clk 0:01:58]}  Rh4 {[%clk 0:02:07]} 15. Nb3 {[%clk 0:01:37]}  Rdh8 {[%clk 0:01:59]} 16. Rd2 {[%clk 0:01:32]}  Kc7 {[%clk 0:01:50]} 17. Kb1 {[%clk 0:01:29]}  Qf4 {[%clk 0:01:42]} 18. Qd3 {[%clk 0:01:25]}  Qd6 {[%clk 0:01:38]} 19. Rde2 {[%clk 0:01:20]}  Re8 {[%clk 0:01:06]} 20. Nf1 {[%clk 0:01:20]}  Bf5 {[%clk 0:01:00]} 21. Qd2 {[%clk 0:01:14]}  Rhe4 {[%clk 0:00:58]} 22. Ne3 {[%clk 0:01:10]}  Be6 {[%clk 0:00:44]} 23. f3 {[%clk 0:01:06]}  Rh4 {[%clk 0:00:44]} 24. a3 {[%clk 0:00:55]}  b6 {[%clk 0:00:44]} 25. Nc1 {[%clk 0:00:49]}  Nf6 {[%clk 0:00:43]} 26. Ng4 {[%clk 0:00:39]}  Rd8 {[%clk 0:00:29]} 27. Ne5 {[%clk 0:00:34]}  Bc8 {[%clk 0:00:22]} 28. Nxf7 {[%clk 0:00:28]}  Qf4 {[%clk 0:00:22]} 29. Qxf4+ {[%clk 0:00:22]}  Rxf4 {[%clk 0:00:22]} 30. Nxd8 {[%clk 0:00:23]}  Kxd8 {[%clk 0:00:22]} 31. Re7 {[%clk 0:00:22]}  Rxd4 {[%clk 0:00:19]} 32. Rxa7 {[%clk 0:00:21]}  Rd2 {[%clk 0:00:18]} 33. Re2 {[%clk 0:00:20]}  Rd1 {[%clk 0:00:17]} 34. c3 {[%clk 0:00:19]}  Bf5+ {[%clk 0:00:16]} 35. Ka2 {[%clk 0:00:17]}  Rxc1 {[%clk 0:00:17]} 36. Rxg7 {[%clk 0:00:15]}  d4 {[%clk 0:00:16]} 37. Ree7 {[%clk 0:00:14]}  dxc3 {[%clk 0:00:14]} 38. Ra7 {[%clk 0:00:12]}  Be6+ {[%clk 0:00:11]} 39. b3 {[%clk 0:00:10]}  Rc2+ {[%clk 0:00:11]} 40. Kb1 {[%clk 0:00:10]}  Rb2+ {[%clk 0:00:11]} 41. Kc1 {[%clk 0:00:10]}  Ne8 {[%clk 0:00:10]} 42. Ra8+ {[%clk 0:00:09]}  Bc8 {[%clk 0:00:10]} 43. Rg8 {[%clk 0:00:08]}  Rxb3 {[%clk 0:00:10]} 44. Rxe8+ {[%clk 0:00:08]}  Kxe8 {[%clk 0:00:10]} 45. Rxc8+ {[%clk 0:00:08]}  Kd7 {[%clk 0:00:11]} 46. Rg8 {[%clk 0:00:07]}  Rxa3 {[%clk 0:00:11]} 47. Rg7+ {[%clk 0:00:07]}  Kd6 {[%clk 0:00:11]} 48. Rxg6+ {[%clk 0:00:08]}  Kc5 {[%clk 0:00:11]} 49. h4 {[%clk 0:00:08]}  Kc4 {[%clk 0:00:12]} 50. Kc2 {[%clk 0:00:08]}  Ra2+ {[%clk 0:00:11]} 51. Kb1 {[%clk 0:00:07]}  Rb2+ {[%clk 0:00:12]} 52. Kc1 {[%clk 0:00:08]}  c5 {[%clk 0:00:12]} 53. h5 {[%clk 0:00:03]}  Kb3 {[%clk 0:00:13]} 54. Rxb6+ {[%clk 0:00:03]}  Ka2 {[%clk 0:00:12]} 0-1


[Site "https://www.chess.com"]

[Event "Titled Tuesday Blitz December 27 Early 2022"]
[White "Tymrakiewicz, Rafal"]
[Black "Tatarinov, Dmitry"]
[WhiteFideId "1108832"]
[BlackFideId "24160067"]
[WhiteElo "2144"]
[BlackElo "2310"]
[Result "0-1"]
[Round "03"]
[TimeControl "180+2"]
[Date "2022.12.27"]
[WhiteClock "0:00:07"]
[BlackClock "0:01:52"]

1. d4 {[%clk 0:03:00]}  d5 {[%clk 0:03:00]} 2. Bg5 {[%clk 0:03:00]}  c5 {[%clk 0:02:59]} 3. e3 {[%clk 0:03:00]}  Nc6 {[%clk 0:03:00]} 4. Nf3 {[%clk 0:02:53]}  Qb6 {[%clk 0:02:59]} 5. Nc3 {[%clk 0:02:53]}  e6 {[%clk 0:02:56]} 6. Na4 {[%clk 0:02:48]}  Qa5+ {[%clk 0:02:56]} 7. c3 {[%clk 0:02:48]}  cxd4 {[%clk 0:02:54]} 8. exd4 {[%clk 0:02:49]}  Bd7 {[%clk 0:02:52]} 9. Bd3 {[%clk 0:01:32]}  h6 {[%clk 0:02:50]} 10. Bf4 {[%clk 0:01:29]}  Nf6 {[%clk 0:02:49]} 11. O-O {[%clk 0:01:29]}  Nxd4 {[%clk 0:02:49]} 12. Nxd4 {[%clk 0:01:27]}  Qxa4 {[%clk 0:02:48]} 13. Qe2 {[%clk 0:01:20]}  Be7 {[%clk 0:02:45]} 14. Rfe1 {[%clk 0:01:15]}  O-O {[%clk 0:02:45]} 15. h3 {[%clk 0:01:13]}  Rfe8 {[%clk 0:02:43]} 16. Qe3 {[%clk 0:01:11]}  Bf8 {[%clk 0:02:39]} 17. Be5 {[%clk 0:01:07]}  Ne4 {[%clk 0:02:33]} 18. Bxe4 {[%clk 0:00:34]}  dxe4 {[%clk 0:02:32]} 19. Qg3 {[%clk 0:00:34]}  f5 {[%clk 0:02:22]} 20. f3 {[%clk 0:00:27]}  exf3 {[%clk 0:02:21]} 21. Qxf3 {[%clk 0:00:27]}  Bc6 {[%clk 0:02:20]} 22. Nxc6 {[%clk 0:00:25]}  Qxc6 {[%clk 0:02:20]} 23. Qxc6 {[%clk 0:00:24]}  bxc6 {[%clk 0:02:21]} 24. Red1 {[%clk 0:00:24]}  Red8 {[%clk 0:02:21]} 25. b4 {[%clk 0:00:20]}  Kf7 {[%clk 0:02:21]} 26. Kf2 {[%clk 0:00:18]}  Rd5 {[%clk 0:02:21]} 27. Rxd5 {[%clk 0:00:16]}  cxd5 {[%clk 0:02:21]} 28. a4 {[%clk 0:00:14]}  Rc8 {[%clk 0:02:21]} 29. b5 {[%clk 0:00:13]}  Bc5+ {[%clk 0:02:20]} 30. Ke2 {[%clk 0:00:13]}  g5 {[%clk 0:02:19]} 31. Kd3 {[%clk 0:00:13]}  h5 {[%clk 0:02:20]} 32. a5 {[%clk 0:00:13]}  Kg6 {[%clk 0:02:17]} 33. Bd4 {[%clk 0:00:11]}  Bxd4 {[%clk 0:02:12]} 34. cxd4 {[%clk 0:00:11]}  Rb8 {[%clk 0:02:09]} 35. Rb1 {[%clk 0:00:11]}  f4 {[%clk 0:02:09]} 36. b6 {[%clk 0:00:10]}  axb6 {[%clk 0:02:09]} 37. axb6 {[%clk 0:00:10]}  Rb7 {[%clk 0:02:09]} 38. Rb5 {[%clk 0:00:08]}  Kf5 {[%clk 0:02:09]} 39. Rb1 {[%clk 0:00:08]}  g4 {[%clk 0:02:10]} 40. h4 {[%clk 0:00:08]}  g3 {[%clk 0:02:08]} 41. Rb2 {[%clk 0:00:07]}  Kg4 {[%clk 0:02:09]} 42. Ke2 {[%clk 0:00:07]}  f3+ {[%clk 0:02:05]} 43. gxf3+ {[%clk 0:00:07]}  Kxh4 {[%clk 0:02:06]} 44. Kf1 {[%clk 0:00:07]}  Kh3 {[%clk 0:02:06]} 45. Kg1 {[%clk 0:00:07]}  h4 {[%clk 0:02:06]} 46. Rb3 {[%clk 0:00:07]}  g2 {[%clk 0:01:48]} 47. Rb2 {[%clk 0:00:07]}  Kg3 {[%clk 0:01:48]} 48. Rxg2+ {[%clk 0:00:06]}  Kxf3 {[%clk 0:01:48]} 49. Rb2 {[%clk 0:00:07]}  Ke4 {[%clk 0:01:49]} 50. Kg2 {[%clk 0:00:07]}  Kxd4 {[%clk 0:01:49]} 51. Kh3 {[%clk 0:00:07]}  Kc5 {[%clk 0:01:49]} 52. Kxh4 {[%clk 0:00:08]}  Rxb6 {[%clk 0:01:50]} 53. Rc2+ {[%clk 0:00:08]}  Kd6 {[%clk 0:01:50]} 54. Kg4 {[%clk 0:00:08]}  Rb4+ {[%clk 0:01:50]} 55. Kf3 {[%clk 0:00:09]}  Rh4 {[%clk 0:01:50]} 56. Rc8 {[%clk 0:00:08]}  e5 {[%clk 0:01:51]} 57. Re8 {[%clk 0:00:07]}  Rh3+ {[%clk 0:01:49]} 58. Ke2 {[%clk 0:00:07]}  e4 {[%clk 0:01:49]} 59. Kd2 {[%clk 0:00:07]}  Kc5 {[%clk 0:01:49]} 60. Ke2 {[%clk 0:00:08]}  Kd4 {[%clk 0:01:49]} 61. Kd2 {[%clk 0:00:08]}  Rh2+ {[%clk 0:01:50]} 62. Ke1 {[%clk 0:00:09]}  Ke3 {[%clk 0:01:50]} 63. Kd1 {[%clk 0:00:08]}  d4 {[%clk 0:01:51]} 64. Rg8 {[%clk 0:00:07]}  d3 {[%clk 0:01:51]} 65. Rg3+ {[%clk 0:00:06]}  Kd4 {[%clk 0:01:51]} 66. Rg4 {[%clk 0:00:06]}  Kc3 {[%clk 0:01:50]} 67. Rxe4 {[%clk 0:00:06]}  Rh1+ {[%clk 0:01:50]} 68. Re1 {[%clk 0:00:07]}  Rxe1+ {[%clk 0:01:51]} 69. Kxe1 {[%clk 0:00:07]}  Kc2 {[%clk 0:01:52]} 0-1


[Site "https://www.chess.com"]

[Event "Titled Tuesday Blitz December 27 Early 2022"]
[White "Vakhlamov, Igor L."]
[Black "Slade, Theodore"]
[WhiteFideId "24126748"]
[BlackFideId "426547"]
[WhiteElo "2413"]
[BlackElo "1995"]
[Result "1-0"]
[Round "03"]
[TimeControl "180+2"]
[Date "2022.12.27"]
[WhiteClock "0:01:37"]
[BlackClock "0:00:54"]

1. e4 {[%clk 0:03:00]}  e5 {[%clk 0:03:00]} 2. Nf3 {[%clk 0:03:00]}  Nc6 {[%clk 0:03:01]} 3. Nc3 {[%clk 0:03:01]}  Nf6 {[%clk 0:03:01]} 4. Bb5 {[%clk 0:03:01]}  Nd4 {[%clk 0:03:02]} 5. Nxd4 {[%clk 0:03:01]}  exd4 {[%clk 0:03:02]} 6. e5 {[%clk 0:03:02]}  dxc3 {[%clk 0:03:03]} 7. exf6 {[%clk 0:03:03]}  Qxf6 {[%clk 0:03:03]} 8. dxc3 {[%clk 0:03:01]}  Bc5 {[%clk 0:03:04]} 9. O-O {[%clk 0:03:01]}  O-O {[%clk 0:03:03]} 10. Qh5 {[%clk 0:02:56]}  d6 {[%clk 0:03:00]} 11. Bg5 {[%clk 0:02:55]}  Qg6 {[%clk 0:02:58]} 12. Qxg6 {[%clk 0:02:55]}  hxg6 {[%clk 0:02:58]} 13. Be7 {[%clk 0:02:55]}  c6 {[%clk 0:02:27]} 14. Bxf8 {[%clk 0:02:54]}  cxb5 {[%clk 0:02:27]} 15. Be7 {[%clk 0:02:50]}  Bf5 {[%clk 0:02:27]} 16. b4 {[%clk 0:02:29]}  Re8 {[%clk 0:02:18]} 17. bxc5 {[%clk 0:02:27]}  Rxe7 {[%clk 0:02:18]} 18. cxd6 {[%clk 0:02:28]}  Rd7 {[%clk 0:02:08]} 19. Rad1 {[%clk 0:02:26]}  Bxc2 {[%clk 0:02:08]} 20. Rd2 {[%clk 0:02:26]}  Bf5 {[%clk 0:02:05]} 21. Re1 {[%clk 0:02:24]}  Kf8 {[%clk 0:02:03]} 22. Re5 {[%clk 0:02:24]}  a6 {[%clk 0:01:56]} 23. Rc5 {[%clk 0:02:24]}  Ke8 {[%clk 0:01:37]} 24. Rc8+ {[%clk 0:02:22]}  Rd8 {[%clk 0:01:38]} 25. Rxd8+ {[%clk 0:02:06]}  Kxd8 {[%clk 0:01:39]} 26. f3 {[%clk 0:01:56]}  Kd7 {[%clk 0:01:35]} 27. Kf2 {[%clk 0:01:56]}  g5 {[%clk 0:01:33]} 28. Ke3 {[%clk 0:01:55]}  Kc6 {[%clk 0:01:27]} 29. f4 {[%clk 0:01:49]}  gxf4+ {[%clk 0:01:26]} 30. Kxf4 {[%clk 0:01:50]}  Be6 {[%clk 0:01:24]} 31. h4 {[%clk 0:01:47]}  f6 {[%clk 0:01:24]} 32. g4 {[%clk 0:01:46]}  Kd7 {[%clk 0:01:24]} 33. g5 {[%clk 0:01:45]}  fxg5+ {[%clk 0:01:23]} 34. Kxg5 {[%clk 0:01:46]}  Bf7 {[%clk 0:01:22]} 35. a3 {[%clk 0:01:46]}  Be8 {[%clk 0:01:17]} 36. Kf5 {[%clk 0:01:45]}  Bf7 {[%clk 0:01:17]} 37. Ke5 {[%clk 0:01:45]}  Bg8 {[%clk 0:01:12]} 38. Rf2 {[%clk 0:01:44]}  Ke8 {[%clk 0:00:57]} 39. Rg2 {[%clk 0:01:41]}  Kf8 {[%clk 0:00:54]} 40. d7 {[%clk 0:01:37]}  Ke7 {[%clk 0:00:54]} 41. Rxg7+ {[%clk 0:01:37]}  Kd8 {[%clk 0:00:54]} 42. Kd6 {[%clk 0:01:37]} 1-0


[Site "https://www.chess.com"]

[Event "Titled Tuesday Blitz December 27 Early 2022"]
[White "Van Foreest, Jorden"]
[Black "Avila Pavas, Santiago"]
[WhiteFideId "1039784"]
[BlackFideId "4437128"]
[WhiteElo "2689"]
[BlackElo "2522"]
[Result "0-1"]
[Round "03"]
[TimeControl "180+2"]
[Date "2022.12.27"]
[WhiteClock "0:00:06"]
[BlackClock "0:00:05"]

1. e4 {[%clk 0:02:59]}  Nf6 {[%clk 0:03:00]} 2. e5 {[%clk 0:02:58]}  Nd5 {[%clk 0:03:01]} 3. d4 {[%clk 0:02:59]}  d6 {[%clk 0:03:01]} 4. c4 {[%clk 0:02:55]}  Nb6 {[%clk 0:03:01]} 5. f4 {[%clk 0:02:55]}  dxe5 {[%clk 0:02:58]} 6. fxe5 {[%clk 0:02:55]}  Nc6 {[%clk 0:02:58]} 7. Be3 {[%clk 0:02:56]}  Bf5 {[%clk 0:02:58]} 8. Nc3 {[%clk 0:02:55]}  e6 {[%clk 0:02:58]} 9. Nf3 {[%clk 0:02:55]}  Be7 {[%clk 0:02:58]} 10. Be2 {[%clk 0:02:56]}  O-O {[%clk 0:02:58]} 11. O-O {[%clk 0:02:56]}  f6 {[%clk 0:02:59]} 12. exf6 {[%clk 0:02:57]}  Bxf6 {[%clk 0:03:00]} 13. Qd2 {[%clk 0:02:58]}  Qe8 {[%clk 0:03:00]} 14. Rad1 {[%clk 0:02:55]}  Rd8 {[%clk 0:03:01]} 15. Qc1 {[%clk 0:02:55]}  Nb4 {[%clk 0:02:55]} 16. Rd2 {[%clk 0:02:55]}  Na4 {[%clk 0:02:46]} 17. a3 {[%clk 0:02:41]}  Nxc3 {[%clk 0:02:35]} 18. Qxc3 {[%clk 0:02:42]}  Nc6 {[%clk 0:02:36]} 19. b4 {[%clk 0:02:43]}  Bg4 {[%clk 0:02:22]} 20. b5 {[%clk 0:02:40]}  Ne7 {[%clk 0:02:22]} 21. h3 {[%clk 0:02:40]}  Bxf3 {[%clk 0:01:57]} 22. Bxf3 {[%clk 0:02:41]}  Nf5 {[%clk 0:01:57]} 23. Bf2 {[%clk 0:02:40]}  b6 {[%clk 0:01:46]} 24. Re1 {[%clk 0:02:38]}  Qg6 {[%clk 0:01:31]} 25. Re4 {[%clk 0:02:10]}  Rd6 {[%clk 0:01:22]} 26. c5 {[%clk 0:02:09]}  bxc5 {[%clk 0:01:11]} 27. Qxc5 {[%clk 0:02:10]}  Rfd8 {[%clk 0:01:11]} 28. Qxa7 {[%clk 0:01:59]}  h5 {[%clk 0:01:05]} 29. a4 {[%clk 0:01:52]}  Kh7 {[%clk 0:00:47]} 30. a5 {[%clk 0:01:51]}  e5 {[%clk 0:00:47]} 31. Qxc7 {[%clk 0:01:49]}  Nxd4 {[%clk 0:00:41]} 32. Bxd4 {[%clk 0:01:49]}  exd4 {[%clk 0:00:37]} 33. b6 {[%clk 0:01:49]}  Bg5 {[%clk 0:00:33]} 34. Rd3 {[%clk 0:01:46]}  Be3+ {[%clk 0:00:34]} 35. Kh1 {[%clk 0:01:42]}  Qg3 {[%clk 0:00:31]} 36. Qc2 {[%clk 0:01:35]}  Qe1+ {[%clk 0:00:29]} 37. Kh2 {[%clk 0:01:32]}  Bg1+ {[%clk 0:00:25]} 38. Kh1 {[%clk 0:01:32]}  Be3+ {[%clk 0:00:25]} 39. Kh2 {[%clk 0:01:33]}  Qg1+ {[%clk 0:00:25]} 40. Kg3 {[%clk 0:01:33]}  Rg6+ {[%clk 0:00:24]} 41. Bg4 {[%clk 0:00:53]}  Qe1+ {[%clk 0:00:24]} 42. Kh2 {[%clk 0:00:51]}  Bg1+ {[%clk 0:00:21]} 43. Kh1 {[%clk 0:00:51]}  Qxe4 {[%clk 0:00:21]} 44. Bf3 {[%clk 0:00:49]}  Qe1 {[%clk 0:00:20]} 45. Rd1 {[%clk 0:00:50]}  Qe3 {[%clk 0:00:13]} 46. Be4 {[%clk 0:00:50]}  d3 {[%clk 0:00:11]} 47. Bxd3 {[%clk 0:00:50]}  Rxd3 {[%clk 0:00:07]} 48. Rxd3 {[%clk 0:00:51]}  Qf2 {[%clk 0:00:03]} 49. Rd2 {[%clk 0:00:49]}  Qg3 {[%clk 0:00:02]} 50. Qc7 {[%clk 0:00:42]}  Qe1 {[%clk 0:00:01]} 51. g4 {[%clk 0:00:08]}  Bf2+ {[%clk 0:00:01]} 52. Kg2 {[%clk 0:00:09]}  Qxd2 {[%clk 0:00:01]} 53. Qc4 {[%clk 0:00:02]}  Be3+ {[%clk 0:00:02]} 54. Kf3 {[%clk 0:00:02]}  Qf2+ {[%clk 0:00:02]} 55. Ke4 {[%clk 0:00:03]}  Qf4+ {[%clk 0:00:03]} 56. Kd3 {[%clk 0:00:04]}  Rd6+ {[%clk 0:00:03]} 57. Kc3 {[%clk 0:00:04]}  Bd2+ {[%clk 0:00:04]} 58. Kb3 {[%clk 0:00:05]}  Qe3+ {[%clk 0:00:04]} 59. Ka4 {[%clk 0:00:05]}  Rd4 {[%clk 0:00:05]} 60. Kb5 {[%clk 0:00:05]}  Rxc4 {[%clk 0:00:05]} 61. Kxc4 {[%clk 0:00:06]}  Bxa5 {[%clk 0:00:05]} 0-1


[Site "https://www.chess.com"]